Cogmind - Beta 9.6 @@@ ROGUE MODE // 2020.05.31 @ 20:53:21 Player: pGoos Result: Destroyed by S-10 Pest with Light Assault Rifle Performance ------------- Evolutions (1) 500 Regions Visited (3) 600 Robots Destroyed (3) 15 Value Destroyed (97) 97 Prototype IDs (0) 0 Alien Tech Used (0) 0 Bonus (0) 0 TOTAL SCORE: 1212 Bonus ------- None Cogmind --------- Core Integrity 0/400 Matter 300/300 Energy 100/100 System Corruption 1% Temperature Cool (0) Movement Core (100) Ox1 Location -9/Materials Parts ------- > --- POWER (1) -------- (None) > --- PROPULSION (3) --- (None) > --- UTILITY (3) ------ Small Storage Unit > --- WEAPON (2) ------- (None) > --- INVENTORY (6) ---- Sensor Array Peak State ------------ > --- POWER ------------ (None) > --- PROPULSION ------- Combat Airjet > --- UTILITY ---------- Small Storage Unit Improved Light Armor Plating > --- WEAPON ----------- (None) > --- INVENTORY -------- Sensor Array [Rating: 9] Favorites ----------- Power Backup Power I Engine Backup Power I Propulsion Backup Propulsion I Hover Unit Backup Propulsion I Flight Unit Flight Unit Utility Small Storage Unit Device Sensor Array Storage Small Storage Unit Protection Improved Light Armor Plating Weapon Light Assault Rifle Energy Gun Backup Laser I Ballistic Gun Light Assault Rifle Special Weapon Mining Laser Build | -11 -10 -10 -9 ------- Run | Scr Mat Min Mat Slots Evolved 2 | . . . 2 Power . | . . . . Propulsion 1 | . . . 1 Utility 1 | . . . 1 Weapon . | . . . . Parts Attached 12 | 2 1 3 6 Power 1 | 1 . . . Engine 1 | 1 . . . Core . | . . . . Reactor . | . . . . Propulsion 2 | . . 1 1 Treads . | . . . . Leg . | . . . . Wheel . | . . . . Hover 1 | . . 1 . Flight 1 | . . . 1 Utility 5 | . 1 2 2 Device 2 | . . 1 1 Storage 2 | . 1 . 1 Processor . | . . . . Hackware . | . . . . Protection 1 | . . 1 . Artifact . | . . . . Weapon 4 | 1 . . 3 Energy Gun . | . . . . Energy Cannon . | . . . . Ballistic Gun 2 | 1 . . 1 Ballistic Cannon . | . . . . Launcher . | . . . . Special Weapon 2 | . . . 2 Impact Weapon . | . . . . Slashing Weapon . | . . . . Piercing Weapon . | . . . . Special Melee Weapon . | . . . . Unidentified Prototypes . | . . . . Parts Lost 11 | . . 7 4 Power 1 | . . 1 . Propulsion 4 | . . 3 1 Utility 1 | . . 1 . Weapon 5 | . . 2 3 Highest Loss Streak 5 | . . 5 2 Average Slot Usage (%) 53 | . 61 77 11 Engine 6 | . 9 9 . Hover 14 | . 18 21 . Device 5 | . . 8 2 Storage 10 | . 9 14 4 Protection 1 | . . 3 . Energy Gun 6 | . 9 9 . Ballistic Gun 7 | . 14 9 . Naked Turns 42 | . . . 42 Heaviest Build 8 | 1 7 8 4 Greatest Support 22 | 3 12 22 4 Greatest Overweight (x) 2 | . . 2 1 Average Overweight (x) . | . . . . Largest Inventory Capacity 6 | 4 6 6 6 Average Capacity 5 | 4 5 6 4 Most Carried 2 | 1 1 1 2 Average Carried . | . . . 1 Final Capacity 6 | 4 6 6 6 Final Carried 1 | 1 . 1 1 Class Distribution -------------------- 100% | Mutant Dominant Class ---------------- Mutant | -10/Materials Mutant | -10/Mines Mutant | -9/Materials Resources | -11 -10 -10 -9 ----------- Run | Scr Mat Min Mat Matter Collected 274 | 200 . 56 18 Remotely . | . . . . Salvage Created 100 | . . 80 20 Parts 8 | . . 5 3 Haulers Intercepted . | . . . . Recyclers Shooed . | . . . . Parts Field Recycled . | . . . . Retrieved Matter . | . . . . Parts Self-Destructed . | . . . . Prevented . | . . . . Kills | -11 -10 -10 -9 ------- Run | Scr Mat Min Mat Combat Hostiles Destroyed 3 | . . 2 1 Melee 3 | . . 2 1 Classes Destroyed 3 | . . 2 1 Swarmer 1 | . . . 1 Grunt 1 | . . 1 . Demolisher 1 | . . 1 . Best Kill Streak 1 | . . 1 1 Combat Bots Only 1 | . . 1 1 Max Kills in Single Turn 1 | . . 1 1 Gunslinging . | . . . . Exploded . | . . . . Melee 1 | . . 1 1 Uniques/NPCs Destroyed . | . . . . Combat | -11 -10 -10 -9 -------- Run | Scr Mat Min Mat Damage Taken 1204 | . . 638 566 Core 608 | . . 202 406 Absorbed by Shields . | . . . . Core Remaining (%) 59 | 100 . 19 . Volleys Fired 11 | . . 3 8 Largest 2 | . . 2 2 Hottest 200 | . . 50 200 Shots Fired 15 | . . 6 9 Gun 13 | . . 6 7 Cannon . | . . . . Launcher . | . . . . Special 2 | . . . 2 Kinetic 10 | . . 3 7 Thermal 5 | . . 3 2 Explosive . | . . . . Electromagnetic . | . . . . Robot Hit Streak 6 | . . 3 6 Robot Miss Streak 3 | . . 3 1 Penetration Max . | . . . . Secondary Targets . | . . . . Shots Hit Robots 10 | . . 3 7 Core Hits 21 | . . 16 5 Critical Hits . | . . . . Critical Kills . | . . . . Critical Parts Destroyed . | . . . . Melee Attacks . | . . . . Impact . | . . . . Slashing . | . . . . Piercing . | . . . . Sneak Attacks . | . . . . Combat Hostiles . | . . . . Follow-up Attacks . | . . . . Damage Inflicted 258 | . . 109 149 Guns 87 | . . 29 58 Cannons . | . . . . Explosions . | . . . . Melee . | . . . . Ramming 123 | . . 80 43 Kinetic 77 | . . 19 58 Thermal 58 | . . 10 48 Explosive . | . . . . Electromagnetic . | . . . . Impact . | . . . . Slashing . | . . . . Piercing . | . . . . Highest Corruption 1 | . . 1 1 Average Corruption 1 | . . 1 1 Corruption Purged . | . . . . Overload Shots . | . . . . Overflow Damage . | . . . . Projectiles . | . . . . Explosions . | . . . . Melee . | . . . . Knockbacks 1 | . . 1 . Impact 1 | . . 1 . Kinetic . | . . . . Secondary . | . . . . Self-Inflicted Damage 51 | . . 34 17 Shots . | . . . . Rammed 46 | . . 24 22 Targets Rammed 46 | . . 24 22 Kicked . | . . . . Crushed . | . . . . Highest Temperature 10 | . . 10 . Average Temperature 7 | . . 7 . Received Heat Transfer 135 | . . 117 18 Siege Activations . | . . . . Robots Corrupted . | . . . . Combat Hostiles . | . . . . Parts Fried . | . . . . Impact Corruptions . | . . . . Robots Melted . | . . . . Combat Hostiles . | . . . . Parts Melted . | . . . . Heat Transferred 137 | . . 37 100 Parts Sabotaged . | . . . . Parts Stolen . | . . . . Parts Stripped . | . . . . Power Chain Reactions . | . . . . Missiles Intercepted . | . . . . Alert | -11 -10 -10 -9 ------- Run | Scr Mat Min Mat Peak Influence 50 | . 2 50 47 Average Influence 10 | . . 9 19 Maximum Alert Level . | . . . . Low Security (%) 100 | 100 100 100 100 Level 1 . | . . . . Level 2 . | . . . . Level 3 . | . . . . Level 4 . | . . . . Level 5 . | . . . . High Security . | . . . . Max Security . | . . . . Squads Dispatched 1 | . 1 . . Investigation 1 | . 1 . . Extermination . | . . . . Reinforcement . | . . . . Assault . | . . . . Garrison . | . . . . Intercept . | . . . . Construction Impeded . | . . . . Haulers Reinforced . | . . . . Stealth | -11 -10 -10 -9 --------- Run | Scr Mat Min Mat Distress Signals 2 | . . . 2 Communications Jammed . | . . . . Distress Signals . | . . . . Times Spotted 14 | . . 8 6 Peak Tracking Total 6 | . . 6 6 Tactical Retreats 3 | . . 1 2 Traps | -11 -10 -10 -9 ------- Run | Scr Mat Min Mat Traps Triggered . | . . . . Indirectly . | . . . . Trap Hack Attempts . | . . . . Triggered . | . . . . Disarmed . | . . . . Reprogrammed . | . . . . Reused . | . . . . Traps Extracted . | . . . . Installed . | . . . . Triggered . | . . . . Machines | -11 -10 -10 -9 ---------- Run | Scr Mat Min Mat Machines Disabled . | . . . . Max in Single Turn . | . . . . Machines Sabotaged . | . . . . Garrisons Compromised . | . . . . Overloaded Fab Kills . | . . . . Fab Network Shutdowns . | . . . . Hacking | -11 -10 -10 -9 --------- Run | Scr Mat Min Mat Machines Accessed 3 | . 2 . 1 Terminals 2 | . 1 . 1 Fabricators . | . . . . Repair Stations 1 | . 1 . . Recycling Units . | . . . . Scanalyzers . | . . . . Garrison Access . | . . . . Total Hacks 10 | . 4 . 6 Successful 6 | . 3 . 3 Failed 4 | . 1 . 3 Catastrophic 1 | . . . 1 Database Lockouts . | . . . . Manual . | . . . . Terminals 9 | . 3 . 6 Fabricators . | . . . . Repair Stations 1 | . 1 . . Recycling Units . | . . . . Scanalyzers . | . . . . Garrison Access . | . . . . Terminal Hacks 5 | . 2 . 3 Record 1 | . 1 . . Alert Level 1 | . 1 . . Unreport Threat 2 | . . . 2 Dispatch Records 1 | . . . 1 Fabricator Hacks . | . . . . Repair Station Hacks 1 | . 1 . . Refit 1 | . 1 . . Recycling Unit Hacks . | . . . . Scanalyzer . | . . . . Garrison Access Hacks . | . . . . Unauthorized Hacks . | . . . . Terminals . | . . . . Fabricators . | . . . . Repair Stations . | . . . . Recycling Units . | . . . . Scanalyzers . | . . . . Garrison Access . | . . . . Data Cores Recovered . | . . . . Used . | . . . . Hacking Detections 2 | . 1 . 1 Full Trace Events 1 | . 1 . . Feedback Events . | . . . . Feedback Blocked . | . . . . Robot Schematics Acquired . | . . . . Robots Built . | . . . . Matter . | . . . . Time . | . . . . Total Robot Build Rating . | . . . . Part Schematics Acquired . | . . . . Parts Built . | . . . . Matter . | . . . . Time . | . . . . Total Part Build Rating . | . . . . Parts Repaired . | . . . . Time . | . . . . Parts Recycled . | . . . . Recycled Matter . | . . . . Retrieved Matter . | . . . . Retrieved Components . | . . . . Parts Scanalyzed . | . . . . Part Schematics Acquired . | . . . . Parts Damaged . | . . . . Bothacking | -11 -10 -10 -9 ------------ Run | Scr Mat Min Mat Used RIF Installer . | . . . . Robots Hacked . | . . . . Non-combat . | . . . . Combat . | . . . . Robot Hacks Applied . | . . . . Relay Couplers Released . | . . . . Robots Rewired . | . . . . Allies Hacked . | . . . . Hacks Repelled . | . . . . Allies | -11 -10 -10 -9 -------- Run | Scr Mat Min Mat Total Allies . | . . . . Largest Group . | . . . . Highest-Rated Group . | . . . . Highest-Rated Ally . | . . . . Total Orders . | . . . . Ally Attacks . | . . . . Total Damage . | . . . . Kills . | . . . . Allies Corrupted . | . . . . Allies Melted . | . . . . Intel | -11 -10 -10 -9 ------- Run | Scr Mat Min Mat Robot Analysis Total . | . . . . Derelict Logs Recovered 1 | . . 1 . Drone Launches . | . . . . Drone Recoveries . | . . . . Exploration | -11 -10 -10 -9 ------------- Run | Scr Mat Min Mat Turns Passed 582 | 24 90 288 180 Spaces Moved 646 | 40 124 295 187 Core 278 | 40 40 13 185 Treads . | . . . . Legs . | . . . . Wheels . | . . . . Hover 366 | . 84 282 . Flight 2 | . . . 2 Fastest Speed 40 | 50 50 76 40 Average Speed 71 | 50 67 78 68 Slowest Speed 150 | 50 76 150 100 Overloaded Moves . | . . . . Propulsion Burnouts . | . . . . Robots Hopped . | . . . . Cave-ins Triggered . | . . . . Exploration Rate (%) 21 | 4 26 39 15 Regions Visited 3 Branch Regions 1 Pre-discovered Areas 1 | . . 1 . Known Exits Taken . | . . . . Unknown Exits Taken 3 | 1 1 1 . Scrap Searched 3 | . . 3 . Spaces Dug . | . . . . Terrain Destroyed . | . . . . Melee . | . . . . Projectile . | . . . . AOE . | . . . . Actions | -11 -10 -10 -9 --------- Run | Scr Mat Min Mat Total 740 | 43 129 342 226 Wait 23 | . 5 17 1 Move 643 | 39 123 294 187 Hop . | . . . . Pick Up 1 | 1 . . . Fast Attach 9 | 2 . 3 4 Attach 3 | . 1 . 2 Detach 3 | . . 1 2 Swap . | . . . . Drop 1 | 1 . . . Fire 11 | . . 3 8 Melee . | . . . . Ram 46 | . . 24 22 Kick . | . . . . Crush . | . . . . Escape Stasis . | . . . . Rewire . | . . . . Trap . | . . . . Miscellaneous . | . . . . Route ------- -11/Scrapyard -10/Materials -10/Mines (discovered 2 exits: *Mat / [*Exi]) -9/Materials (discovered 1 exit: [*Min]) History --------- Turn | Location | Event 8 | -11/Scrapyard | Discovered new exit (range 16) 25 | -11/Scrapyard | Entered Materials 105 | -10/Materials | Discovered new exit (range 11) 115 | -10/Materials | Entered Mines 146 | -10/Mines | Deemed a non-threat by the Exiles lab entrance 147 | -10/Mines | Discovered new exit (range 5) 241 | -10/Mines | Discovered new exit (range 11) 263 | -10/Mines | Assembled infested the area 313 | -10/Mines | Build established: Mutant 343 | -10/Mines | Lost 5 parts (1p2n2w) 379 | -10/Mines | Core integrity fell below 50% 396 | -10/Mines | Core integrity fell below 20% 403 | -10/Mines | Entered Materials 403 | -9/Materials | Evolved 2 slots: Propulsion x1, Utility x1 462 | -9/Materials | Discovered new exit (range 16) 547 | -9/Materials | Core integrity fell below 50% 574 | -9/Materials | Core integrity fell below 20% 583 | -9/Materials | Destroyed by S-10 Pest with Light Assault Rifle Last Messages --------------- 00504_ Mining Laser temporarily disabled. 00506_ Slammed into S-10 Pest. 00506_ Destabilizing: System corrupted (+1). 00507_ Slammed into S-10 Pest. 00508_ Mining Laser destroyed. 00509_ Slammed into S-10 Pest. 00525_ K-01 Serf collects debris. 00540_ Slammed into S-10 Pest. 00549_ S-10 Pest destroyed. 00550_ Acquired Flight Unit. 00551_ Acquired 10 matter. 00552_ Acquired Lgt. Assault Rifle. 00564_ Flight Unit destroyed. 00566_ Acquired 3 matter. 00567_ Slammed into S-10 Pest. 00568_ Lgt. Assault Rifle destroyed. 00569_ Slammed into S-10 Pest. 00570_ Acquired 5 matter. 00570_ Slammed into S-10 Pest. 00583_ Destabilizing: Core damaged (-20). Map ----- +----------------------------------------------------+ | ????????????????????# ##### # """ # | | ????????????????????# #???# # """ # | | ?????????????########/#???# # # | | ?????????????# #???# ###??### | | ?????????????# """ #???# #?###### | | ?????????????# """ #?### ### # | | ?????????????# """ #?# ! # ""# | | ?????????????#] ### # T"# | | ?????????????# """ + + ""# | | ?????????????# """ ### # # | | ?????????????# """ #?# # # | | ?????????????# #####+######## | | ???????####+######/#### #? | | ??????## # """ """ #? | | ??????+ # """ """ #? | | ??????## # """ """ #? | | ???????# ##### #? | | ???????# #???# #? | | ??????+ #################? | | ??????######### ##%* #??????? | | ??????????????# ## %% #??????? | | ??????????????# ## %% #??????? | | ?????????????## ## """s% #??????? | | ???????####### # """%% #??????? | | ??? #r"S s% #??????? | | ??? Y """%@ #??????? | | ??? # ""% #??????? | | ????####+##### # #??????? | | ?????????????###/############??????? | | ?????????????? ??????????????????? | | ?????????????# ??????????????????? | | ?????????????# ""??????????????????? | | ?????????????# ""??????????????????? | | ?????????????# ""??????????????????? | | ?????????????# ????????????????????? | | ?????????????#?????????????????????? | | ???????????????????????????????????? | | ???????????????????????????????????? | | ???????????????????????????????????? | | ???????????????????????????????????? | | ???????????????????????????????????? | | ???????????????????????????????????? | | ???????????????????????????????????? | | ???????????????????????????????????? | | ???????????????????????????????????? | | ???????????????????????????????????? | | ???????????????????????????????????? | | ???????????????????????????????????? | | ???????????????????????????????????? | | ???????????????????????????????????? | +----------------------------------------------------+ Best States ------------- Heat Dissipation 28 Energy Generation 9 Energy Capacity 100 Matter Stores 300 Matter Capacity 300 Sight Range 16 Robot Scan Range 10 Terrain Scan Density 10 Armor Coverage 150 Evasion (%) 50 Item Schematics ----------------- None Robot Schematics ------------------ None Fabricated ------------ Nothing Alien Tech Used ----------------- None Achievements -------------- None Challenges ------------ None Game ------ Seed SiegeComponentShockpuncher Manual? 0 Play Time 00:18:53 Cumulative 23.9 hours Start 2020.05.31 @ 20:18:30 End 2020.05.31 @ 20:53:21 Sessions 1 Manual Loads 0 Difficulty Rogue Special Mode None Game No. 33 Rogue 33 Adventurer 0 Explorer 0 Win Type - Total 0 Types 0/0/0/0/0/0/0 Lore% 20 Gallery% 23 Achievement% 17 Wizard Run 0 Options --------- ASCII 0 Keyboard 0 Movement Numpad Keybinds 0 Fullscreen 2 Font 24/Terminus Map View 113x50 Tactical HUD 1 Map Filters NONE Filters NONE Steam 1 RUN: 1c4b49ec-f1dd-490c-b718-a45967970f87